bitfinex/quotes_SOLUSD_20250506
["timestamp","ask_amount","ask_price","bid_price","bid_amount"]
[1746541657835,21.59761402,143.73,143.68,6.95991091]
[1746541658125,14.64,143.73,143.72,20.38107632]
[1746541661800,14.64,143.73,143.72,27.33905015]
[1746541662711,51.9,143.76,143.72,27.33905015]
[1746541662902,14.64,143.76,143.72,27.33905015]
[1746541663306,14.64,143.76,143.75,20.38107632]
[1746541663703,14.64,143.77,143.75,20.38107632]
[1746541664213,14.64,143.77,143.74,20.38107632]
[1746541664508,14.64,143.76,143.75,20.38107632]
[1746541664716,14.64,143.76,143.74,20.38107632]
[1746541665022,58.85524638,143.78,143.71,6.4851]
[1746541665023,14.64,143.77,143.71,6.4851]
[1746541665198,14.64,143.77,143.74,20.38107632]
[1746541665551,6.95603784,143.76,143.73,20.38107632]
[1746541665917,6.95603784,143.76,143.74,20.38107632]
[1746541666314,6.95603784,143.76,143.75,20.38107632]
[1746541666902,6.95603784,143.76,143.74,20.38107632]
[1746541668311,6.95603784,143.76,143.71,26.86617632]
[1746541668620,6.95603784,143.76,143.74,20.38107632]
[1746541669309,6.95603784,143.76,143.75,20.38107632]
[1746541669515,73.49556073,143.77,143.75,20.38107632]
[1746541670024,73.47556073,143.77,143.74,20.38107632]
[1746541670695,76.23766774,143.81,143.76,20.38107632]
[1746541670889,20.38107632,143.79,143.75,20.38107632]
[1746541671206,20.38107632,143.78,143.74,20.38107632]
[1746541671841,6.95551992,143.78,143.74,20.38107632]
[1746541672049,6.95551992,143.78,143.72,6.95797383]
[1746541672328,6.95551992,143.78,143.74,20.38107632]
[1746541673344,6.95551992,143.78,143.72,6.95797383]
[1746541673510,58.8547293,143.79,143.76,20.38107632]
[1746541674324,58.8547293,143.79,143.75,20.38107632]
[1746541675012,79.23580562,143.79,143.74,20.38107632]
[1746541675233,20.38107632,143.78,143.71,21.1051]
[1746541675430,20.38107632,143.75,143.71,6.4851]
[1746541675728,14.62,143.74,143.71,20.38107632]
[1746541676520,14.62,143.74,143.68,6.95991091]
[1746541676721,14.62,143.74,143.71,20.38107632]
[1746541677227,14.62,143.74,143.72,20.38107632]
[1746541677718,14.62,143.74,143.73,20.38107632]
[1746541679838,14.62,143.74,143.7,6.9587426]
[1746541680138,14.62,143.74,143.73,20.38107632]
[1746541680740,14.62,143.74,143.73,27.33856605]
[1746541680924,14.62,143.74,143.73,20.38107632]
[1746541681739,58.85469514,143.79,143.73,35.24336605]
[1746541681942,14.62,143.78,143.77,20.38107632]
[1746541682942,21.57507024,143.78,143.76,20.38107632]
[1746541683122,21.57507024,143.78,143.75,20.38107632]
[1746541683324,21.57507024,143.78,143.76,20.38107632]
[1746541684644,20.38107632,143.77,143.7,6.3683]
[1746541684835,20.38107632,143.76,143.72,20.38107632]
[1746541685643,72.28107632,143.77,143.73,20.38107632]
[1746541685941,51.9,143.77,143.74,20.38107632]
[1746541686137,72.28107632,143.77,143.7,13.32711809]
[1746541686336,20.38107632,143.76,143.72,20.38107632]
[1746541686539,6.95652173,143.75,143.73,20.38107632]
[1746541687574,6.95603784,143.76,143.73,20.38107632]
[1746541688233,51.9,143.77,143.75,20.38107632]
[1746541688432,66.52,143.77,143.76,20.38107632]
[1746541688750,14.62,143.77,143.76,20.38107632]
[1746541688953,75.12822282,143.81,143.76,20.38107632]
[1746541689166,14.62,143.8,143.78,20.38107632]
[1746541689331,14.62,143.8,143.77,20.38107632]
[1746541689532,35.00107632,143.8,143.76,20.38107632]
[1746541689732,6.95458654,143.79,143.76,20.38107632]
[1746541690433,20.38107632,143.78,143.71,6.95822366]
[1746541690632,20.38107632,143.78,143.74,20.38107632]
[1746541691747,6.955554,143.77,143.74,20.38107632]
[1746541692045,6.955554,143.77,143.73,20.38107632]
[1746541692252,27.33663032,143.77,143.73,20.38107632]
[1746541692430,44.72551534,143.77,143.73,20.38107632]
[1746541692748,20.38107632,143.76,143.7,6.3683]
[1746541692924,14.62,143.75,143.72,20.38107632]
[1746541693128,35.00107632,143.75,143.71,20.38107632]
[1746541693527,20.38107632,143.74,143.7,20.38107632]
[1746541694242,27.33856605,143.73,143.69,20.38107632]
[1746541694826,6.95748973,143.73,143.69,20.38107632]
[1746541695049,6.95748973,143.73,143.7,20.38107632]
[1746541695256,6.9570057,143.74,143.71,20.38107632]
[1746541695753,27.33808202,143.74,143.67,6.96017009]
[1746541696147,20.38107632,143.72,143.66,14.74041667]
[1746541696452,20.38107632,143.72,143.68,20.38107632]
[1746541697652,6.95833865,143.72,143.69,20.38107632]
[1746541698154,6.95833865,143.72,143.7,20.38107632]
[1746541698553,6.95833865,143.72,143.68,6.95989291]
[1746541698765,6.95833865,143.72,143.66,14.74041557]
[1746541699064,6.95833865,143.72,143.69,20.38107632]
[1746541699761,6.95833865,143.72,143.66,14.74041557]
[1746541699947,6.95833865,143.72,143.69,20.38107632]
[1746541700567,58.85766068,143.73,143.7,20.38107632]
[1746541700736,51.9,143.73,143.71,20.38107632]
[1746541703168,51.9,143.73,143.69,6.95919274]
[1746541703371,51.9,143.73,143.71,20.38107632]
[1746541704264,58.85763988,143.73,143.71,20.38107632]
[1746541704468,79.2387162,143.73,143.66,7.7797]
[1746541704776,58.85763988,143.73,143.7,20.38107632]
[1746541705272,58.85763988,143.73,143.69,20.38107632]
[1746541705450,79.2387162,143.73,143.69,20.38107632]
[1746541705859,79.2387162,143.73,143.66,14.7404488]
[1746541706077,79.2387162,143.73,143.69,20.38107632]
[1746541706254,20.38107632,143.72,143.66,7.7797]
[1746541706454,79.2387162,143.73,143.69,20.38107632]
[1746541707794,96.63244054,143.73,143.69,20.38107632]
[1746541709769,79.2387162,143.73,143.69,20.38107632]
[1746541710966,20.38107632,143.72,143.66,7.7797]
[1746541711157,72.28107632,143.72,143.68,20.38107632]
[1746541711358,51.9,143.72,143.68,20.38107632]
[1746541711583,51.9,143.72,143.69,20.38107632]
[1746541711968,14.62,143.71,143.7,20.38107632]
[1746541712371,14.62,143.71,143.69,20.38107632]
[1746541713284,14.62,143.71,143.7,20.38107632]
[1746541713977,14.62,143.73,143.7,20.38107632]
[1746541714282,14.62,143.73,143.72,20.38107632]
[1746541714679,14.62,143.73,143.66,7.7797]
[1746541714886,35.00107632,143.73,143.69,20.38107632]
[1746541715073,35.00107632,143.73,143.66,7.7797]
[1746541715283,35.00107632,143.73,143.69,20.38107632]
[1746541715793,6.95797383,143.72,143.68,20.38107632]
[1746541716087,6.95797383,143.72,143.69,20.38107632]
[1746541717988,14.62,143.71,143.69,20.38107632]
[1746541718493,58.85730644,143.74,143.7,20.38107632]
[1746541718790,14.62,143.73,143.71,20.38107632]
[1746541719089,14.62,143.73,143.72,20.38107632]
[1746541719289,14.62,143.73,143.68,6.95986668]
[1746541719592,14.62,143.73,143.7,20.38107632]
[1746541720382,21.57754565,143.73,143.71,20.38107632]
[1746541721290,14.62,143.73,143.71,20.38107632]
[1746541721991,21.57750043,143.73,143.71,20.38107632]
[1746541722395,21.57750043,143.73,143.7,20.38107632]
[1746541722893,21.57750043,143.73,143.67,6.96019899]
[1746541723093,21.57750043,143.73,143.7,20.38107632]
[1746541723602,41.95857675,143.73,143.67,6.96019899]
[1746541723790,21.57750043,143.73,143.7,20.38107632]
[1746541724286,41.95857675,143.73,143.69,20.38107632]
[1746541724690,41.95857675,143.73,143.67,6.96018367]
[1746541724999,41.95857675,143.73,143.69,20.38107632]
[1746541725398,20.38107632,143.72,143.66,7.7797]
[1746541725575,20.38107632,143.72,143.68,20.38107632]
[1746541725779,20.38107632,143.72,143.66,7.7797]
[1746541726199,6.958458,143.71,143.68,20.38107632]
[1746541727197,6.958458,143.71,143.67,20.38107632]
[1746541728586,6.95809226,143.72,143.68,20.38107632]
[1746541728900,41.95872741,143.73,143.69,20.38107632]
[1746541729203,20.38107632,143.72,143.68,20.38107632]
[1746541729782,6.958458,143.71,143.68,20.38107632]
[1746541730209,6.958458,143.71,143.67,20.38107632]
[1746541730391,27.33927118,143.72,143.67,20.38107632]
[1746541730601,20.38107632,143.71,143.66,14.74035837]
[1746541730909,20.38107632,143.71,143.67,20.38107632]
[1746541731078,20.38107632,143.71,143.66,35.12143469]
[1746541731400,20.38107632,143.71,143.67,20.38107632]
[1746541732496,27.33965075,143.71,143.67,27.34144886]
[1746541732703,6.95857443,143.71,143.67,27.34144886]
[1746541732903,27.33965075,143.71,143.67,20.38107632]
[1746541735111,27.33965075,143.71,143.66,14.74040213]
[1746541735409,27.33965075,143.71,143.67,20.38107632]
[1746541736187,27.33965075,143.71,143.67,27.3413532]
[1746541736386,27.33919565,143.72,143.68,20.38107632]
[1746541736696,27.33919565,143.72,143.67,6.96027688]
[1746541736697,27.33919565,143.72,143.67,27.3413532]
[1746541736891,20.38107632,143.7,143.66,7.7797]
[1746541737293,20.38107632,143.7,143.66,28.16077632]
[1746541737494,6.95811933,143.72,143.64,20.38107632]
[1746541737495,20.38107632,143.69,143.64,20.38107632]
[1746541737790,14.62,143.68,143.65,20.38107632]
[1746541738299,14.62,143.68,143.64,27.3429002]
[1746541739003,21.58003345,143.68,143.64,27.3429002]
[1746541739308,21.58003345,143.68,143.64,6.96182388]
[1746541739509,21.58003345,143.68,143.65,20.38107632]
[1746541740307,21.58003345,143.68,143.63,6.96233377]
[1746541740491,14.62,143.68,143.65,20.38107632]
[1746541740996,14.62,143.68,143.66,20.38107632]
[1746541741309,51.9,143.71,143.63,24.3681682]
[1746541741515,14.62,143.7,143.68,20.38107632]
[1746541743215,14.62,143.7,143.68,27.34088837]
[1746541743404,14.62,143.7,143.68,20.38107632]
[1746541744899,27.33936501,143.72,143.68,20.38107632]
[1746541744900,14.62,143.71,143.68,20.38107632]
[1746541745714,14.62,143.71,143.68,27.34085949]
[1746541746214,14.62,143.71,143.68,20.38107632]
[1746541747113,14.62,143.71,143.67,20.38107632]
[1746541747414,41.95954022,143.71,143.64,17.40349373]
[1746541747603,41.95954022,143.71,143.67,20.38107632]
[1746541748310,41.95954022,143.71,143.66,20.38107632]
[1746541748502,41.95954022,143.71,143.66,6.96071301]
[1746541748904,41.95954022,143.71,143.67,20.38107632]
[1746541749617,41.95954022,143.71,143.64,6.96184906]
[1746541749799,20.38107632,143.69,143.64,6.96184906]
[1746541749998,20.38107632,143.69,143.65,20.38107632]
[1746541750203,20.38107632,143.69,143.64,6.96184906]
[1746541750408,20.38107632,143.68,143.63,21.58215465]
[1746541750716,20.38107632,143.68,143.64,20.38107632]
[1746541751428,20.38107632,143.68,143.63,21.58215465]
[1746541751724,6.95976134,143.69,143.65,20.38107632]
[1746541752021,27.34083766,143.69,143.65,20.38107632]
[1746541752218,6.95976134,143.69,143.65,20.38107632]
[1746541752519,14.62,143.71,143.68,20.38107632]
[1746541753306,14.62,143.71,143.68,27.34086762]
[1746541753507,14.62,143.71,143.69,20.38107632]
[1746541753705,14.62,143.71,143.65,6.96136442]
[1746541754026,41.95955403,143.71,143.67,20.38107632]
[1746541754234,41.95955403,143.71,143.65,27.34244074]
[1746541754235,20.38107632,143.69,143.65,27.34244074]
[1746541754594,41.95955403,143.71,143.67,20.38107632]
[1746541754797,35.00107632,143.71,143.67,20.38107632]
[1746541755227,35.00107632,143.71,143.65,6.96136442]
[1746541755426,35.00107632,143.71,143.66,20.38107632]
[1746541755723,35.00107632,143.71,143.65,6.96136442]
[1746541755920,41.95970288,143.71,143.66,27.34193935]
[1746541757126,21.57862656,143.71,143.66,27.34193935]
[1746541757309,21.57862656,143.71,143.67,20.38107632]
[1746541757625,35.00107632,143.71,143.67,20.38107632]
[1746541757818,41.95958228,143.71,143.67,20.38107632]
[1746541758119,20.38107632,143.7,143.66,20.38107632]
[1746541758522,14.62,143.71,143.67,20.38107632]
[1746541758708,14.62,143.71,143.65,24.36477548]
[1746541758905,41.95957628,143.71,143.67,20.38107632]
[1746541759427,20.38107632,143.7,143.66,20.38107632]
[1746541759610,20.38107632,143.7,143.65,20.38107632]
[1746541759807,20.38107632,143.69,143.64,41.96249195]
[1746541760611,20.38107632,143.7,143.66,20.38107632]
[1746541761327,21.57849996,143.71,143.67,20.38107632]
[1746541762011,79.2392442,143.72,143.68,20.38107632]
[1746541762215,14.6,143.71,143.68,20.38107632]
[1746541763332,14.6,143.71,143.67,27.34146383]
[1746541763529,21.55867503,143.71,143.67,27.34146383]
[1746541763905,14.6,143.71,143.68,20.38107632]
[1746541764423,14.6,143.71,143.69,20.38107632]
[1746541764732,14.6,143.72,143.69,20.38107632]
[1746541766316,21.55821261,143.72,143.69,20.38107632]
[1746541768327,41.93928893,143.72,143.69,20.38107632]
[1746541768538,14.6,143.72,143.69,20.38107632]
[1746541768719,21.55804649,143.72,143.69,20.38107632]
[1746541770234,14.6,143.72,143.69,20.38107632]
[1746541770421,14.6,143.72,143.7,20.38107632]
[1746541770620,21.55806243,143.72,143.69,20.38107632]
[1746541771140,41.93913875,143.72,143.68,6.95974426]
[1746541771441,41.93913875,143.72,143.69,20.38107632]
[1746541771617,21.55806243,143.72,143.69,20.38107632]
[1746541772115,14.6,143.72,143.69,20.38107632]
[1746541772538,21.55810604,143.72,143.69,20.38107632]
[1746541773318,41.93918236,143.72,143.69,20.38107632]
[1746541773639,41.93918236,143.72,143.68,20.38107632]
[1746541774820,21.55810604,143.72,143.68,20.38107632]
[1746541775021,41.93918236,143.72,143.68,20.38107632]
[1746541775943,21.55810604,143.72,143.69,20.38107632]
[1746541776127,21.55810604,143.72,143.7,20.38107632]
[1746541776519,21.55810604,143.72,143.69,20.38107632]
[1746541778346,41.93918236,143.72,143.69,20.38107632]
[1746541780760,41.93918236,143.72,143.67,15.0063914]
[1746541780925,20.38107632,143.71,143.67,8.0462]
[1746541781117,41.93918236,143.72,143.68,20.38107632]
[1746541781316,21.55810604,143.72,143.69,20.38107632]
[1746541781920,6.95810604,143.72,143.69,20.38107632]
[1746541782121,21.55810604,143.72,143.69,20.38107632]
[1746541784352,21.55798625,143.72,143.7,20.38107632]
[1746541784552,21.55798625,143.72,143.69,20.38107632]
[1746541785053,41.93906257,143.72,143.67,15.006431]
[1746541785244,41.93906257,143.72,143.68,20.38107632]
[1746541785445,20.38107632,143.71,143.67,28.42727632]
[1746541785755,41.93906257,143.72,143.68,20.38107632]
[1746541786550,41.93906257,143.72,143.67,8.0462]
[1746541786751,41.93906257,143.72,143.68,20.38107632]
[1746541789643,21.55798625,143.72,143.69,20.38107632]
[1746541790048,21.55798625,143.72,143.67,15.00649837]
[1746541790242,21.55798625,143.72,143.69,20.38107632]
[1746541790751,6.95798625,143.72,143.69,20.38107632]
[1746541791852,21.53772094,143.73,143.7,20.38107632]
[1746541793331,6.95652173,143.75,143.72,20.38107632]
[1746541793578,6.955554,143.77,143.74,20.38107632]
[1746541793745,6.955554,143.77,143.75,20.38107632]
[1746541794255,6.955554,143.77,143.76,20.38107632]
[1746541794559,6.95527681,143.78,143.76,20.38107632]
[1746541798069,6.95527681,143.78,143.77,20.38107632]
[1746541798851,6.95527681,143.78,143.76,20.38107632]
[1746541799674,6.95475589,143.79,143.77,20.38107632]
[1746541800887,6.95361935,143.81,143.78,20.38107632]
[1746541801176,27.33469567,143.81,143.74,14.58]
[1746541801350,27.33469567,143.81,143.77,20.38107632]
[1746541801548,6.95361935,143.81,143.78,20.38107632]
[1746541802077,21.53361935,143.81,143.78,20.38107632]
[1746541802360,21.53361935,143.81,143.79,20.38107632]
[1746541803375,21.53361935,143.81,143.8,20.38107632]
[1746541803558,21.53361935,143.81,143.79,20.38107632]
[1746541803876,6.95361935,143.81,143.79,20.38107632]
[1746541804288,6.95330466,143.82,143.8,20.38107632]
[1746541805153,6.95330466,143.82,143.81,20.38107632]
[1746541805367,6.95265243,143.83,143.81,20.38107632]
[1746541805561,6.95168578,143.85,143.82,20.38107632]
[1746541806086,21.51168578,143.85,143.82,20.38107632]
[1746541806257,21.51168578,143.85,143.83,20.38107632]
[1746541806680,21.51168578,143.85,143.82,20.38107632]
[1746541806858,21.51168578,143.85,143.83,20.38107632]
[1746541807053,21.51168578,143.85,143.78,30.78744963]
[1746541807252,17.37783103,143.87,143.84,20.38107632]
[1746541807453,14.56,143.87,143.84,20.38107632]
[1746541808054,34.94107632,143.87,143.83,20.38107632]
[1746541808377,20.38107632,143.84,143.79,14.56]
[1746541808572,20.38107632,143.82,143.78,20.38107632]
[1746541808753,14.56,143.81,143.79,20.38107632]
[1746541809482,6.95410292,143.8,143.79,20.38107632]
[1746541810260,6.95410292,143.8,143.77,7.8327]
[1746541810476,6.95410292,143.8,143.79,20.38107632]
[1746541810699,6.95410292,143.8,143.77,7.8327]
[1746541810700,6.95410292,143.8,143.77,28.21377632]
[1746541811262,6.95410292,143.8,143.75,14.56]
[1746541811477,6.95410292,143.8,143.76,20.38107632]
[1746541812069,6.95410292,143.8,143.77,20.38107632]
[1746541812268,24.33936022,143.8,143.77,20.38107632]
[1746541812812,6.95410292,143.8,143.79,20.38107632]
[1746541812975,6.95410292,143.8,143.75,14.56]
[1746541813291,6.95410292,143.8,143.78,20.38107632]
[1746541813657,6.95410292,143.8,143.75,21.51651041]
[1746541813886,6.95410292,143.8,143.79,20.38107632]
[1746541814482,6.95410292,143.8,143.78,20.38107632]
[1746541814684,21.51410292,143.8,143.78,20.38107632]
[1746541815478,21.51410292,143.8,143.79,20.38107632]
[1746541816987,14.56,143.8,143.79,20.38107632]
[1746541817183,21.51410292,143.8,143.75,14.56]
[1746541817570,21.51410292,143.8,143.78,20.38107632]
[1746541817770,21.51410292,143.8,143.79,20.38107632]
[1746541818069,21.51410292,143.8,143.78,20.38107632]
[1746541819404,21.51410292,143.8,143.77,20.38107632]
[1746541819578,41.89517924,143.8,143.74,1.5047]
[1746541819792,20.38107632,143.77,143.7,1.5621]
[1746541820089,20.38107632,143.77,143.72,20.38107632]
[1746541820471,20.38107632,143.75,143.7,1.5621]
[1746541820674,20.38107632,143.74,143.7,20.38107632]
[1746541821174,20.38107632,143.72,143.66,1.6153]
[1746541821387,14.56,143.75,143.68,20.38107632]
[1746541821591,20.38107632,143.74,143.7,20.38107632]
[1746541821797,6.95748973,143.73,143.7,20.38107632]
[1746541822692,27.33856605,143.73,143.69,20.38107632]
[1746541822877,44.73229039,143.73,143.69,20.38107632]
[1746541823883,20.38107632,143.71,143.67,20.38107632]
[1746541824091,14.56,143.7,143.67,20.38107632]
[1746541824583,34.94107632,143.7,143.66,20.38107632]
[1746541825006,20.38107632,143.69,143.65,26.70847632]
[1746541825381,34.94107632,143.7,143.66,20.38107632]
[1746541825586,14.56,143.7,143.67,20.38107632]
[1746541825785,21.51917952,143.7,143.67,20.38107632]
[1746541827699,41.90025584,143.7,143.66,20.38107632]
[1746541828382,41.90025584,143.7,143.65,6.3274]
[1746541828683,41.90025584,143.7,143.66,20.38107632]
[1746541828879,20.38107632,143.69,143.64,14.54]
[1746541829084,20.38107632,143.68,143.64,20.38107632]
[1746541829301,20.38107632,143.68,143.62,1.6295]
[1746541829602,20.38107632,143.68,143.64,20.38107632]
[1746541830005,6.96039535,143.67,143.64,20.38107632]
[1746541830384,6.96039535,143.67,143.65,20.38107632]
[1746541831107,6.96039535,143.67,143.64,20.38107632]
[1746541833308,20.38107632,143.66,143.61,6.0577]
[1746541833495,14.56,143.65,143.62,20.38107632]
[1746541834003,14.56,143.65,143.61,6.0577]
[1746541834210,6.96184906,143.64,143.62,20.38107632]
[1746541834501,21.52147686,143.65,143.62,20.38107632]
[1746541835311,41.90255318,143.65,143.62,20.38107632]
[1746541835484,41.90255318,143.65,143.61,26.43877632]
[1746541836647,14.56,143.65,143.62,20.38107632]
[1746541837196,27.34168508,143.67,143.63,20.38107632]
[1746541837409,14.54,143.66,143.63,20.38107632]
[1746541837599,14.54,143.66,143.64,20.38107632]
[1746541837790,14.54,143.66,143.61,13.02082415]
[1746541837995,14.54,143.66,143.63,20.38107632]
[1746541838513,6.96136442,143.65,143.62,20.38107632]
[1746541839520,14.54,143.68,143.64,20.38107632]
[1746541839699,14.54,143.68,143.65,20.38107632]
[1746541840011,34.92107632,143.68,143.64,20.38107632]
[1746541840317,20.38107632,143.65,143.61,6.0577]
[1746541840512,20.38107632,143.65,143.61,26.43877632]
[1746541841097,20.38107632,143.65,143.61,6.0577]
[1746541841591,20.38107632,143.64,143.6,20.38107632]
[1746541841798,14.54,143.63,143.59,20.38107632]
[1746541842014,14.54,143.63,143.6,20.38107632]
[1746541842316,6.96281854,143.62,143.59,20.38107632]
[1746541842710,21.50237059,143.63,143.6,20.38107632]
[1746541842899,14.54,143.63,143.61,20.38107632]
[1746541843113,14.54,143.63,143.62,20.38107632]
[1746541845425,14.54,143.63,143.62,27.34389486]
[1746541846225,21.50061753,143.67,143.62,27.34389486]
[1746541846401,21.50061753,143.67,143.64,20.38107632]
[1746541846605,41.88169385,143.67,143.63,20.38107632]
[1746541847597,21.50061753,143.67,143.63,20.38107632]
[1746541847798,41.88169385,143.67,143.63,20.38107632]
[1746541848102,21.50061753,143.67,143.63,20.38107632]
[1746541848715,6.96061753,143.67,143.63,20.38107632]
[1746541848921,41.88169385,143.67,143.63,20.38107632]
[1746541849614,41.88169385,143.67,143.59,6.96427327]
[1746541849825,20.38107632,143.65,143.61,20.38107632]
[1746541850328,20.38107632,143.66,143.62,20.38107632]
[1746541850540,27.34244074,143.65,143.6,6.96356698]
[1746541850730,20.38107632,143.64,143.6,20.38107632]
[1746541852019,20.38107632,143.63,143.59,20.38107632]
[1746541852608,27.34330477,143.64,143.6,20.38107632]
[1746541854102,68.0575,143.67,143.61,20.38107632]
[1746541854103,6.96155461,143.65,143.61,20.38107632]
[1746541854303,20.38107632,143.68,143.64,20.38107632]
[1746541854631,14.54,143.68,143.65,20.38107632]
[1746541854926,14.54,143.68,143.66,20.38107632]
[1746541855223,14.54,143.68,143.65,20.38107632]
[1746541855820,14.54,143.68,143.66,20.38107632]
[1746541856207,27.34062634,143.69,143.64,20.38107632]
[1746541856412,14.54,143.68,143.65,20.38107632]
[1746541856638,21.5002694,143.68,143.65,20.38107632]
[1746541857124,21.5002694,143.68,143.62,27.78576165]
[1746541857325,21.5002694,143.68,143.64,20.38107632]
[1746541857719,41.88134572,143.68,143.64,20.38107632]
[1746541858123,20.38107632,143.67,143.63,20.38107632]
[1746541858616,41.88134572,143.68,143.64,20.38107632]
[1746541859826,20.38107632,143.67,143.62,6.2831]
[1746541860041,20.38107632,143.67,143.63,20.38107632]
[1746541860336,20.38107632,143.64,143.6,20.38107632]
[1746541860635,6.96233377,143.63,143.6,20.38107632]
[1746541860838,66.44,143.68,143.61,20.38107632]
[1746541861132,20.38107632,143.67,143.63,20.38107632]
[1746541861309,6.96039535,143.67,143.64,20.38107632]
[1746541861720,41.8812198,143.68,143.64,20.38107632]
[1746541861917,419.421076,144.06,143.64,20.38107632]
[1746541861918,38.55393804,143.73,143.65,20.38107632]
[1746541862132,20.38107632,143.71,143.66,20.38107632]
[1746541862514,20.38107632,143.69,143.65,20.38107632]
[1746541862826,27.34147167,143.67,143.63,21.92537632]
[1746541863028,41.86147167,143.67,143.63,21.92537632]
[1746541863226,41.86147167,143.67,143.63,20.38107632]
[1746541864010,41.86147167,143.67,143.64,20.38107632]
[1746541864211,21.48039535,143.67,143.64,20.38107632]
[1746541864414,14.52,143.67,143.65,20.38107632]
[1746541864614,14.52,143.67,143.66,20.38107632]
[1746541864914,14.52,143.7,143.66,27.34195617]
[1746541865116,34.90107632,143.7,143.64,1.6139]
[1746541865316,20.38107632,143.69,143.65,20.38107632]
[1746541865518,14.52,143.69,143.66,20.38107632]
[1746541865736,34.90107632,143.69,143.65,20.38107632]
[1746541866821,69.29493459,143.72,143.65,20.38107632]
[1746541867038,20.38107632,143.7,143.66,20.38107632]
[1746541868236,27.34019675,143.7,143.66,20.38107632]
[1746541870763,14.52,143.71,143.67,20.38107632]
[1746541870764,21.47858564,143.71,143.67,20.38107632]
[1746541871447,41.85966196,143.71,143.67,20.38107632]
[1746541871857,6.95814975,143.72,143.68,20.38107632]
[1746541872043,6.95814975,143.72,143.69,20.38107632]
[1746541872044,14.52,143.71,143.69,20.38107632]
[1746541872563,6.95814975,143.72,143.69,20.38107632]
[1746541872747,14.52,143.73,143.68,6.95978598]
[1746541872942,34.90107632,143.73,143.69,20.38107632]
[1746541873269,14.52,143.73,143.7,20.38107632]
[1746541874068,6.95797383,143.72,143.69,20.38107632]
[1746541874461,6.95797383,143.72,143.7,20.38107632]
[1746541875655,14.52,143.73,143.7,20.38107632]
[1746541875656,21.47766721,143.73,143.7,20.38107632]
[1746541876171,14.52,143.73,143.7,20.38107632]
[1746541876380,14.52,143.73,143.72,20.38107632]
[1746541876584,21.47761631,143.73,143.7,22.04077632]
[1746541876755,21.47761631,143.73,143.71,20.38107632]
[1746541877877,21.47761631,143.73,143.7,22.04077632]
[1746541878382,20.38107632,143.72,143.68,14.52]
[1746541878557,20.38107632,143.71,143.68,14.52]
[1746541878763,20.38107632,143.71,143.67,20.38107632]
[1746541879263,6.95894224,143.7,143.67,20.38107632]
[1746541880761,6.95864948,143.71,143.68,20.38107632]
[1746541881962,27.3397258,143.71,143.68,20.38107632]
[1746541882162,20.38107632,143.7,143.66,20.38107632]
[1746541882375,20.38107632,143.69,143.65,20.38107632]
[1746541882572,20.38107632,143.68,143.64,34.90107632]
[1746541882777,34.88107632,143.68,143.64,20.38107632]
[1746541882995,20.38107632,143.66,143.62,28.47177632]
[1746541883665,6.96184906,143.64,143.61,20.38107632]
[1746541883859,6.96184906,143.64,143.6,21.46364643]
[1746541884174,6.96184906,143.64,143.61,20.38107632]
[1746541885183,6.96184906,143.64,143.6,14.5]
[1746541885184,27.34292538,143.64,143.58,8.0907]
[1746541885362,34.88107632,143.63,143.59,20.38107632]
[1746541885564,6.96281854,143.62,143.6,20.38107632]
[1746541886064,14.5,143.63,143.61,20.38107632]
[1746541886278,14.5,143.63,143.62,20.38107632]
[1746541886684,21.46052047,143.67,143.62,20.38107632]
[1746541886867,21.46052047,143.67,143.64,20.38107632]
[1746541887065,41.84159679,143.67,143.63,20.38107632]
[1746541887271,20.38107632,143.66,143.62,20.38107632]
[1746541887780,6.96136442,143.65,143.58,32.46732415]
[1746541887980,27.34244074,143.65,143.61,20.38107632]
[1746541888674,20.38107632,143.64,143.6,20.38107632]
[1746541888858,20.38107632,143.64,143.58,15.05542835]
[1746541889067,20.38107632,143.63,143.58,8.0907]
[1746541889265,20.38107632,143.63,143.58,28.47177632]
[1746541889472,20.38107632,143.63,143.59,20.38107632]
[1746541889966,41.84389486,143.62,143.56,14.5]
[1746541890169,20.38107632,143.61,143.56,14.5]
[1746541890370,20.38107632,143.61,143.57,20.38107632]
[1746541891191,20.38107632,143.59,143.55,6.4569]
[1746541891370,20.38107632,143.58,143.55,6.4569]
[1746541891696,20.38107632,143.58,143.54,20.38107632]
[1746541892264,14.5,143.57,143.54,20.38107632]
[1746541892668,41.84653373,143.57,143.52,14.5]
[1746541892873,41.84653373,143.57,143.53,20.38107632]
[1746541893327,20.38107632,143.56,143.51,6.4569]
[1746541893473,20.38107632,143.56,143.52,20.38107632]
[1746541893799,20.38107632,143.56,143.51,6.4569]
[1746541893800,20.38107632,143.55,143.51,20.38107632]
[1746541894168,20.38107632,143.54,143.5,1.6263]
[1746541894573,27.3475127,143.55,143.51,20.38107632]